bitfinex-derivatives/quotes_BTCF0:USTF0_20250903
["timestamp","ask_amount","ask_price","bid_price","bid_amount"]
[1756893211120,0.002,111310.0,111300.0,0.74608465]
[1756893211311,0.002,111310.0,111300.0,1.19962396]
[1756893212020,0.002,111310.0,111300.0,0.74608465]
[1756893212209,0.002,111310.0,111300.0,1.19962396]
[1756893213823,0.002,111310.0,111300.0,0.74608465]
[1756893214414,0.45553931,111310.0,111300.0,0.11608465]
[1756893214616,0.72753843,111310.0,111300.0,0.09223465]
[1756893214820,1.03753843,111310.0,111300.0,0.01456]
[1756893215014,1.04753843,111310.0,111290.0,0.08087]
[1756893215215,1.28281931,111300.0,111290.0,0.25087]
[1756893215521,1.28281931,111300.0,111290.0,0.25077]
[1756893215522,1.30481843,111300.0,111290.0,0.25077]
[1756893215719,1.31390917,111300.0,111290.0,0.25077]
[1756893215921,1.56390917,111300.0,111290.0,0.21692]
[1756893216118,1.55481843,111300.0,111290.0,0.21692]
[1756893216322,1.55481843,111300.0,111290.0,0.21792]
[1756893217518,1.55681843,111300.0,111290.0,0.21692]
[1756893219024,1.93881843,111300.0,111280.0,0.08084]
[1756893219219,0.45353931,111290.0,111280.0,0.35084]
[1756893219416,0.47553843,111290.0,111280.0,0.31689]
[1756893219618,0.47553843,111290.0,111280.0,0.10689]
[1756893219924,1.30469843,111290.0,111280.0,0.14184]
[1756893220722,1.30569843,111290.0,111280.0,0.14184]
[1756893221125,1.30569843,111290.0,111280.0,0.08184]
[1756893222013,1.30569843,111290.0,111280.0,0.04689]
[1756893222219,1.55569843,111290.0,111270.0,0.0836]
[1756893222419,0.45353931,111280.0,111270.0,0.3336]
[1756893222718,0.45353931,111280.0,111270.0,0.3335]
[1756893223825,0.45353931,111280.0,111270.0,0.3345]
[1756893225017,0.47551419,111280.0,111270.0,0.3345]
[1756893225221,0.45353931,111280.0,111270.0,0.3345]
[1756893227529,0.45353931,111280.0,111270.0,0.1745]
[1756893229431,1.28253931,111280.0,111270.0,0.1745]
[1756893229929,1.35545077,111280.0,111270.0,0.1745]
[1756893233644,1.35545077,111280.0,111270.0,0.11508]
[1756893234249,0.90191146,111280.0,111270.0,0.13955]
[1756893234447,1.35545077,111280.0,111270.0,0.1745]
[1756893237949,1.35545077,111280.0,111270.0,0.0845]
[1756893239852,0.90191146,111280.0,111270.0,0.0845]
[1756893240040,1.35545077,111280.0,111270.0,0.0845]
[1756893240245,0.90191146,111280.0,111270.0,0.0845]
[1756893240446,1.35545077,111280.0,111270.0,0.0845]
[1756893242151,0.07291146,111280.0,111270.0,0.53803931]
[1756893242353,0.40176,111280.0,111270.0,0.4445]
[1756893242655,0.40176,111280.0,111270.0,0.53803931]
[1756893243054,0.40176,111280.0,111270.0,0.0845]
[1756893243255,0.42374007,111280.0,111270.0,0.0845]
[1756893243558,0.4955589,111280.0,111270.0,0.0845]
[1756893243758,0.94909821,111280.0,111270.0,0.0845]
[1756893246556,0.4955589,111280.0,111270.0,0.0845]
[1756893246757,0.94909821,111280.0,111270.0,0.0845]
[1756893247350,0.4955589,111280.0,111270.0,0.0845]
[1756893248856,0.94909821,111280.0,111270.0,0.0845]
[1756893253155,0.9224789,111280.0,111270.0,0.4645]
[1756893253459,0.85066007,111280.0,111270.0,0.53803931]
[1756893253654,0.02198007,111280.0,111270.0,0.53803931]
[1756893253853,0.02198007,111280.0,111270.0,0.88803931]
[1756893253854,0.85062007,111280.0,111270.0,0.88803931]
[1756893254457,0.02198007,111280.0,111270.0,0.88803931]
[1756893254961,0.82306007,111280.0,111270.0,0.88803931]
[1756893256859,0.85062007,111280.0,111270.0,0.88803931]
[1756893257161,0.02198007,111280.0,111270.0,1.13803931]
[1756893257465,0.0001,111290.0,111280.0,0.08409]
[1756893257466,0.82874,111290.0,111280.0,0.08409]
[1756893257656,0.85065636,111290.0,111280.0,1.08455452]
[1756893259155,0.02201636,111290.0,111280.0,1.08455452]
[1756893259354,0.001,111290.0,111280.0,1.05008452]
[1756893259863,0.001,111290.0,111280.0,0.40409]
[1756893260066,0.001,111290.0,111280.0,1.08455452]
[1756893260264,0.001,111290.0,111280.0,1.08555452]
[1756893260463,0.001,111290.0,111280.0,0.40509]
[1756893260664,0.001,111290.0,111280.0,1.08555452]
[1756893260866,0.76185226,111300.0,111290.0,0.08409]
[1756893261062,0.44346196,111300.0,111290.0,0.42432226]
[1756893261262,0.78369422,111300.0,111290.0,0.42432226]
[1756893261765,0.36217422,111300.0,111290.0,0.42432226]
[1756893261960,1.19073422,111300.0,111290.0,0.42432226]
[1756893262866,1.19073422,111300.0,111290.0,0.42532226]
[1756893263059,1.19073422,111300.0,111290.0,0.08509]
[1756893263261,1.19073422,111300.0,111290.0,0.42532226]
[1756893263664,0.85050196,111300.0,111290.0,0.42532226]
[1756893263966,1.19069422,111300.0,111290.0,0.42532226]
[1756893265576,0.36217422,111300.0,111290.0,0.42532226]
[1756893265865,1.19069422,111300.0,111290.0,0.42532226]
[1756893269468,1.19069422,111300.0,111290.0,0.05062]
[1756893269665,1.19069422,111300.0,111290.0,0.34123226]
[1756893269860,1.53092648,111300.0,111290.0,0.05062]
[1756893270571,1.53092648,111300.0,111290.0,0.08509]
[1756893270773,1.53192648,111300.0,111290.0,0.08509]
[1756893272070,1.53192648,111300.0,111290.0,0.001]
[1756893272377,2.44215874,111300.0,111290.0,0.001]
[1756893272568,2.10192648,111300.0,111290.0,0.001]
[1756893272763,2.10192648,111300.0,111280.0,0.02473]
[1756893272971,1.27279422,111300.0,111280.0,0.08419]
[1756893273269,0.34023226,111290.0,111280.0,0.08419]
[1756893273576,0.36217422,111290.0,111280.0,0.08409]
[1756893273777,0.36217422,111290.0,111280.0,0.04962]
[1756893274076,0.36217422,111290.0,111280.0,0.05062]
[1756893274467,0.36217422,111290.0,111280.0,0.08509]
[1756893276684,0.02194196,111290.0,111280.0,0.08509]
[1756893276974,0.36217422,111290.0,111280.0,0.08509]
[1756893279075,0.36217422,111290.0,111280.0,0.001]
[1756893279376,0.36217422,111290.0,111280.0,0.04917]
[1756893279574,0.36217422,111290.0,111280.0,0.001]
[1756893279575,1.26240648,111290.0,111280.0,0.001]
[1756893280070,1.26340648,111290.0,111280.0,0.001]
[1756893280477,1.26440648,111290.0,111270.0,0.06948336]
[1756893280676,1.50882452,111280.0,111270.0,0.06948336]
[1756893280878,1.53076648,111280.0,111270.0,0.06938336]
[1756893281781,1.53076648,111280.0,111270.0,0.10596336]
[1756893282178,1.53076648,111280.0,111270.0,0.10696336]
[1756893283180,1.19053422,111280.0,111270.0,0.44719562]
[1756893284474,1.2623243,111280.0,111270.0,0.44719562]
[1756893289490,1.60255656,111280.0,111270.0,0.10696336]
[1756893289682,1.60255656,111280.0,111270.0,0.44719562]
[1756893290588,1.60255656,111280.0,111270.0,0.10696336]
[1756893290589,1.2623243,111280.0,111270.0,0.10696336]
[1756893290887,1.2623243,111280.0,111270.0,0.44719562]
[1756893291288,0.92209204,111280.0,111270.0,0.44719562]
[1756893291488,1.2623243,111280.0,111270.0,0.44719562]
[1756893292390,0.4339643,111280.0,111270.0,0.44719562]
[1756893292688,1.2622843,111280.0,111270.0,0.77719562]
[1756893293690,1.2622843,111280.0,111270.0,0.44719562]
[1756893294486,1.2622843,111280.0,111270.0,0.10696336]
[1756893294789,1.2622843,111280.0,111270.0,0.46719562]
[1756893294990,1.2622843,111280.0,111270.0,0.75719562]
[1756893295191,1.24034234,111280.0,111270.0,0.75719562]
[1756893295581,1.24034234,111280.0,111270.0,0.44719562]
[1756893295888,1.24034234,111280.0,111270.0,0.46719562]
[1756893296291,0.90011008,111280.0,111270.0,0.46719562]
[1756893296481,0.90007008,111280.0,111270.0,0.69719562]
[1756893296684,0.82838,111290.0,111280.0,0.08428]
[1756893296890,0.82828,111290.0,111280.0,1.07474452]
[1756893297086,1.16851226,111290.0,111280.0,0.73451226]
[1756893297286,0.82828,111290.0,111280.0,0.73451226]
[1756893297489,0.0001,111300.0,111280.0,1.32474452]
[1756893297793,0.36224363,111300.0,111290.0,0.42451226]
[1756893297990,1.19042363,111300.0,111290.0,0.42451226]
[1756893298188,0.02191137,111300.0,111290.0,0.42451226]
[1756893298401,0.85019137,111300.0,111290.0,0.42451226]
[1756893298692,1.19042363,111300.0,111290.0,0.42451226]
[1756893299092,1.19042363,111300.0,111290.0,0.43335722]
[1756893299485,0.85119137,111300.0,111290.0,0.43335722]
[1756893299682,1.19142363,111300.0,111290.0,0.43335722]
[1756893299884,1.19142363,111300.0,111290.0,0.43435722]
[1756893300088,1.19142363,111300.0,111290.0,0.08528]
[1756893300286,1.19042363,111300.0,111290.0,0.42551226]
[1756893302395,1.19038363,111300.0,111290.0,0.42551226]
[1756893303293,0.02191137,111300.0,111290.0,0.42551226]
[1756893303495,0.0001,111310.0,111290.0,0.95893226]
[1756893303696,0.34033226,111310.0,111300.0,0.43821226]
[1756893303893,1.19034239,111310.0,111300.0,0.43821226]
[1756893304498,1.16843226,111310.0,111300.0,0.80821226]
[1756893304694,1.89866,111320.0,111310.0,0.08428]
[1756893304895,3.45889344,111320.0,111310.0,0.42451226]
[1756893305198,3.11866118,111320.0,111310.0,0.08428]
[1756893305393,3.45889344,111320.0,111310.0,0.42451226]
[1756893305698,3.11866118,111320.0,111310.0,0.42451226]
[1756893305887,3.45889344,111320.0,111310.0,0.42451226]
[1756893306199,3.11866118,111320.0,111310.0,0.42451226]
[1756893306395,3.45889344,111320.0,111310.0,0.08428]
[1756893306591,3.46089344,111320.0,111310.0,0.42451226]
[1756893307096,3.46289344,111320.0,111310.0,0.42451226]
[1756893307800,3.8031257,111320.0,111310.0,0.08428]
[1756893308600,3.8031257,111320.0,111310.0,0.42451226]
[1756893309002,3.12266118,111320.0,111310.0,0.08428]
[1756893309299,3.8031257,111320.0,111310.0,0.08428]
[1756893311305,3.8031257,111320.0,111310.0,0.0477]
[1756893312011,3.8031257,111320.0,111310.0,0.08516]
[1756893313110,3.8031257,111320.0,111310.0,0.0477]
[1756893313314,3.12266118,111320.0,111300.0,0.11895998]
[1756893313512,3.12276118,111320.0,111300.0,0.45919224]
[1756893313813,3.12276118,111320.0,111310.0,0.42469226]
[1756893314012,3.12266118,111320.0,111310.0,0.42469226]
[1756893314213,3.8031257,111320.0,111310.0,0.08446]
[1756893314409,3.8031257,111320.0,111310.0,0.42469226]
[1756893314608,3.12266118,111320.0,111310.0,0.38723226]
[1756893314804,3.8031257,111320.0,111310.0,0.08446]
[1756893315009,3.12266118,111320.0,111310.0,0.38723226]
[1756893315311,3.8031257,111320.0,111310.0,0.38723226]
[1756893315512,3.8021257,111320.0,111310.0,0.42469226]
[1756893315917,3.8001257,111320.0,111310.0,0.42469226]
[1756893316214,3.8001257,111320.0,111310.0,0.38723226]
[1756893316415,3.46189344,111320.0,111310.0,0.38723226]
[1756893316709,3.46289344,111320.0,111310.0,0.08446]
[1756893316904,3.46289344,111320.0,111310.0,0.38723226]
[1756893317105,3.8031257,111320.0,111310.0,0.38723226]
[1756893317408,3.57619374,111320.0,111310.0,0.047]
[1756893318610,3.57619374,111320.0,111300.0,0.07195998]
[1756893318816,3.12276118,111320.0,111300.0,0.57249254]
[1756893319017,3.57629374,111320.0,111300.0,0.57249254]
[1756893319615,3.57529374,111320.0,111300.0,0.57249254]
[1756893320116,3.57329374,111320.0,111300.0,0.57249254]
[1756893320316,3.57429374,111320.0,111300.0,0.57249254]
[1756893320616,3.57429374,111320.0,111300.0,0.11895998]
[1756893320818,3.57429374,111320.0,111300.0,0.57249254]
[1756893322517,3.57429374,111320.0,111300.0,0.11895998]
[1756893322718,3.57429374,111320.0,111300.0,0.57249254]
[1756893323808,3.57429374,111320.0,111300.0,0.59249254]
[1756893324117,2.29256118,111320.0,111310.0,0.08446]
[1756893324423,2.95042118,111320.0,111310.0,0.08446]
[1756893324920,2.12246118,111320.0,111310.0,0.53799256]
[1756893325128,2.75042118,111320.0,111310.0,0.53799256]
[1756893325417,0.02590118,111320.0,111310.0,0.53799256]
[1756893325714,0.85386118,111320.0,111310.0,0.53799256]
[1756893326614,0.02590118,111320.0,111310.0,0.53799256]
[1756893327017,0.85382118,111320.0,111310.0,0.53799256]
[1756893337818,0.85382118,111320.0,111310.0,0.08446]
[1756893338024,0.85382118,111320.0,111310.0,0.53799256]
[1756893341029,0.85382118,111320.0,111310.0,0.08446]
[1756893341324,0.85382118,111320.0,111310.0,0.047]
[1756893341530,0.85382118,111320.0,111310.0,0.08376]
[1756893341826,0.85382118,111320.0,111310.0,0.53729256]
[1756893345029,0.02590118,111320.0,111310.0,0.87729256]
[1756893346628,0.02590118,111320.0,111310.0,0.42376]
[1756893346834,0.02590118,111320.0,111310.0,0.87729256]
[1756893347230,0.02590118,111320.0,111310.0,0.42376]
[1756893347429,0.02590118,111320.0,111310.0,0.87729256]
[1756893347630,0.02586127,111320.0,111310.0,0.87729256]
[1756893348031,0.02586127,111320.0,111310.0,0.42376]
[1756893348337,0.02586127,111320.0,111310.0,0.87729256]
[1756893349131,0.02586127,111320.0,111310.0,0.42376]
[1756893349334,0.02586127,111320.0,111310.0,0.87729256]
[1756893353435,0.02586127,111320.0,111310.0,1.12729256]
[1756893353633,0.004,111320.0,111310.0,2.01926685]
[1756893353829,0.00371,111320.0,111310.0,2.01926685]
[1756893354442,0.00371,111320.0,111310.0,2.10909665]
[1756893355135,0.00371,111320.0,111310.0,2.49833492]
[1756893355341,0.001,111350.0,111330.0,0.08421]
[1756893355640,0.00142,111350.0,111340.0,0.53774256]
[1756893355836,0.02328243,111350.0,111340.0,0.86671098]
[1756893356332,0.09470415,111350.0,111340.0,0.86671098]
[1756893356539,0.10270415,111350.0,111340.0,0.86671098]
[1756893357437,0.10270415,111350.0,111340.0,0.40421]
[1756893357637,0.10270415,111350.0,111340.0,0.85774256]
[1756893357936,0.10244415,111350.0,111340.0,0.8788236]
[1756893358941,0.08042172,111350.0,111340.0,0.8788236]
[1756893359137,0.07542172,111350.0,111340.0,0.8788236]
[1756893359345,0.07574172,111350.0,111340.0,0.8788236]
[1756893359537,0.07558172,111350.0,111340.0,0.42529104]
[1756893359738,0.07558172,111350.0,111340.0,0.88776231]
[1756893360446,0.07584172,111350.0,111340.0,0.46422975]
[1756893360744,0.07558172,111350.0,111340.0,0.91776231]
[1756893360938,0.07542172,111350.0,111340.0,0.91776231]
[1756893361144,0.09767111,111350.0,111340.0,0.46422975]
[1756893361345,0.09767111,111350.0,111340.0,0.91776231]
[1756893361643,0.07584172,111350.0,111340.0,0.46422975]
[1756893361944,0.07584172,111350.0,111340.0,0.91776231]
[1756893362438,0.07574172,111350.0,111340.0,0.91776231]
[1756893362641,0.07542172,111350.0,111340.0,0.91776231]
[1756893362944,0.07584172,111350.0,111340.0,0.10529104]
[1756893363345,0.07584172,111350.0,111340.0,0.47529104]
[1756893363941,0.07584172,111350.0,111340.0,0.48413459]
[1756893364138,0.07584172,111350.0,111340.0,0.9288236]
[1756893364335,0.07584172,111350.0,111340.0,0.10529104]
[1756893364539,0.07584172,111350.0,111340.0,0.45529104]
[1756893365148,0.09765401,111350.0,111340.0,0.45529104]
[1756893365451,0.07584172,111350.0,111340.0,0.45529104]
[1756893366350,0.09765102,111350.0,111340.0,0.45529104]
[1756893366552,0.07584172,111350.0,111340.0,0.45529104]
[1756893367051,0.09765107,111350.0,111340.0,0.45529104]
[1756893367242,0.07584172,111350.0,111340.0,0.9088236]
[1756893367443,0.801183,111350.0,111340.0,0.10421]
[1756893368050,0.34765044,111350.0,111340.0,0.10421]
[1756893369244,0.34765044,111350.0,111340.0,0.06745]
[1756893369450,0.00042,111340.0,111330.0,0.08527]
[1756893369650,1.28551256,111340.0,111330.0,0.08517]
[1756893369954,0.85378872,111340.0,111330.0,0.08517]
[1756893371754,0.85478872,111340.0,111330.0,0.08517]
[1756893372345,1.5674849,111340.0,111330.0,0.04943]
[1756893372963,1.55832128,111340.0,111330.0,0.08517]
[1756893373146,1.10578872,111340.0,111330.0,0.08517]
[1756893373651,0.02412872,111340.0,111330.0,0.53870256]
[1756893373850,0.85532872,111340.0,111330.0,0.86870256]
[1756893374251,0.85532872,111340.0,111330.0,0.41517]
[1756893374452,0.85560194,111340.0,111330.0,0.86870256]
[1756893376456,0.85560194,111340.0,111330.0,0.41517]
[1756893376645,0.85560194,111340.0,111330.0,0.86870256]
[1756893377450,0.85560194,111340.0,111330.0,0.7551391]
[1756893378150,1.19557104,111340.0,111330.0,0.7551391]
[1756893378556,0.85560194,111340.0,111330.0,0.7551391]
[1756893379854,0.85560194,111340.0,111330.0,0.41517]
[1756893380051,0.85534194,111340.0,111330.0,0.7551391]
[1756893380254,0.85518194,111340.0,111330.0,0.7551391]
[1756893380451,0.02382194,111340.0,111330.0,0.7551391]
[1756893380655,0.02382194,111340.0,111330.0,1.0951082]
[1756893384157,0.02382194,111340.0,111330.0,1.3451082]
[1756893385152,0.002,111340.0,111330.0,1.3451082]
[1756893386866,0.002,111340.0,111330.0,1.49601]
[1756893387060,0.002,111340.0,111330.0,2.1759482]
[1756893387258,0.002,111340.0,111330.0,1.8359791]
[1756893387967,0.002,111340.0,111330.0,2.1759482]
[1756893389575,0.002,111340.0,111330.0,1.49601]
[1756893389766,0.002,111340.0,111330.0,2.1759482]
[1756893390571,0.002,111340.0,111330.0,1.49601]
[1756893390773,0.002,111340.0,111330.0,2.1759482]
[1756893392075,0.002,111340.0,111330.0,0.66517]
[1756893392264,0.002,111340.0,111330.0,1.5853791]
[1756893392265,0.00242,111340.0,111330.0,1.5853791]
[1756893392466,0.02425911,111340.0,111330.0,0.7551391]
[1756893392665,0.36422821,111340.0,111330.0,0.41517]
[1756893393066,0.36422821,111340.0,111330.0,0.7551391]
[1756893393275,0.02425911,111340.0,111330.0,0.7551391]
[1756893395171,0.02399911,111340.0,111330.0,0.7551391]
[1756893395378,0.02383911,111340.0,111330.0,0.7551391]
[1756893395880,0.02383911,111340.0,111330.0,1.0951082]
[1756893396480,0.02383911,111340.0,111330.0,1.3451082]
[1756893396776,0.002,111340.0,111330.0,1.3451082]
[1756893397181,0.002,111340.0,111330.0,1.4349216]
[1756893397780,0.002,111340.0,111330.0,1.7748907]
[1756893398074,0.0088,111370.0,111330.0,1.7748907]
[1756893398075,0.0087,111370.0,111360.0,0.08453]
[1756893398268,0.0087,111370.0,111360.0,1.0844682]
[1756893398474,0.03070027,111370.0,111360.0,1.0844682]
[1756893399173,0.03370027,111370.0,111360.0,1.10516856]
[1756893399374,0.0117,111370.0,111360.0,1.10516856]
[1756893399777,0.0147,111370.0,111360.0,1.10516856]
[1756893400680,0.0147,111370.0,111360.0,1.93564856]
[1756893400873,0.0147,111370.0,111360.0,1.10516856]
[1756893401074,0.0147,111370.0,111360.0,1.93568856]
[1756893401270,0.0147,111370.0,111360.0,1.10516856]
[1756893404070,0.0147,111370.0,111360.0,1.93516856]
[1756893404883,0.0147,111370.0,111360.0,1.10516856]
[1756893412287,0.0147,111370.0,111360.0,0.42523036]
[1756893412491,0.01974,111370.0,111360.0,1.10516856]
[1756893412792,0.0147,111370.0,111360.0,1.10516856]
[1756893418396,0.0159,111370.0,111360.0,1.10516856]
[1756893418694,0.63170642,111370.0,111360.0,0.42523036]
[1756893418896,0.63170647,111370.0,111360.0,0.14523036]
[1756893419095,0.63170647,111370.0,111360.0,0.48523036]
[1756893419296,0.04173737,111370.0,111360.0,0.48523036]
[1756893419490,0.38170647,111370.0,111360.0,0.48523036]
[1756893419692,0.04173737,111370.0,111360.0,0.48523036]
[1756893420000,0.38170647,111370.0,111360.0,0.48523036]
[1756893420292,1.20962647,111370.0,111360.0,0.48523036]
[1756893420795,0.86965737,111370.0,111360.0,0.43523036]
[1756893420995,1.20962647,111370.0,111360.0,0.77519946]
[1756893421799,1.20962647,111370.0,111360.0,0.43523036]
[1756893422296,1.22962647,111370.0,111360.0,0.43523036]
[1756893422990,1.20962647,111370.0,111360.0,0.43523036]
[1756893423189,2.13959557,111370.0,111360.0,0.03497]
[1756893423389,2.13959557,111370.0,111360.0,0.01]
[1756893423698,0.00504,111360.0,111350.0,0.10068]
[1756893423889,1.07697557,111360.0,111350.0,0.11058]
[1756893424089,0.85495737,111360.0,111350.0,0.11058]
[1756893424396,1.19492647,111360.0,111350.0,0.4505491]
[1756893424597,0.02199737,111360.0,111350.0,0.4505491]
[1756893424786,0.02199737,111360.0,111350.0,0.4035791]
[1756893424986,0.83256647,111370.0,111350.0,0.7535791]
[1756893425197,0.83640647,111370.0,111360.0,0.3890591]
[1756893425397,0.8848502,111370.0,111360.0,0.4260291]
[1756893425598,0.83630647,111370.0,111360.0,0.4260291]
[1756893425985,0.8848502,111370.0,111360.0,0.4260291]
[1756893426493,0.8878502,111370.0,111360.0,0.4260291]
[1756893427498,0.83930647,111370.0,111360.0,0.4260291]
[1756893427797,1.08930647,111370.0,111360.0,0.08606]
[1756893427996,1.09230647,111370.0,111360.0,0.08606]
[1756893428198,1.11230647,111370.0,111360.0,0.04909]
[1756893429392,0.00504,111360.0,111350.0,0.09906]
[1756893429588,0.6849782,111360.0,111350.0,0.12896]
[1756893429792,0.70697557,111360.0,111350.0,0.12896]
[1756893430394,0.36700647,111360.0,111350.0,0.12896]
[1756893430594,0.02703737,111360.0,111350.0,0.4689291]
[1756893430795,1.14644647,111360.0,111350.0,0.4689291]
[1756893431002,1.14844647,111360.0,111350.0,0.4689291]
[1756893431395,1.15044647,111360.0,111350.0,0.4689291]
[1756893433500,0.37100647,111360.0,111350.0,0.4689291]
[1756893433703,0.85775737,111360.0,111350.0,0.4689291]
[1756893434700,0.85967737,111360.0,111350.0,0.4689291]
[1756893435601,0.86279737,111360.0,111350.0,0.12896]
[1756893435791,1.20276647,111360.0,111350.0,0.12896]
[1756893435991,1.20276647,111360.0,111350.0,0.4689291]
[1756893436902,0.86279737,111360.0,111350.0,0.12896]
[1756893437103,1.20276647,111360.0,111350.0,0.4689291]
[1756893438010,1.20276647,111360.0,111350.0,0.12896]
[1756893438195,1.20276647,111360.0,111350.0,0.4689291]
[1756893439005,1.20276647,111360.0,111350.0,0.12896]
[1756893439203,1.54273557,111360.0,111350.0,0.04452]
[1756893439400,1.56609551,111360.0,111350.0,0.03]
[1756893440006,1.58489551,111360.0,111340.0,0.05619097]
[1756893440309,0.45833814,111350.0,111340.0,0.37298097]
[1756893440510,0.02703737,111350.0,111340.0,0.37288097]
[1756893442208,0.80033551,111350.0,111340.0,0.31679]
[1756893442404,0.73033551,111350.0,111340.0,0.04679]
[1756893442710,0.73033551,111350.0,111340.0,0.02328]
[1756893442907,0.75033551,111350.0,111340.0,0.02328]
[1756893443409,0.00504,111340.0,111330.0,0.08166]
[1756893443611,0.85847737,111340.0,111330.0,0.32156]
[1756893443806,1.31177551,111340.0,111330.0,0.32156]
[1756893445014,1.31277551,111340.0,111330.0,0.32156]
[1756893445216,1.29077814,111340.0,111330.0,0.32156]
[1756893447924,1.31280107,111340.0,111330.0,0.28679]
[1756893448326,1.31280107,111340.0,111330.0,0.05679]
[1756893448327,1.33280107,111340.0,111330.0,0.05679]
[1756893448921,0.50136107,111340.0,111330.0,0.05679]
[1756893449121,1.33208107,111340.0,111330.0,0.05679]
[1756893449716,0.87878293,111340.0,111330.0,0.09156]
[1756893449919,1.33208107,111340.0,111330.0,0.05679]
[1756893451024,1.33208107,111340.0,111330.0,0.04679]
[1756893451519,1.31208107,111340.0,111330.0,0.04679]
[1756893451724,0.00504,111330.0,111320.0,0.10275471]
[1756893451917,0.00504,111330.0,111320.0,0.36265471]
[1756893453424,0.00504,111330.0,111320.0,0.36365471]
[1756893462131,0.00384,111330.0,111320.0,0.36365471]
[1756893463130,0.07609357,111330.0,111320.0,0.36365471]
[1756893463723,0.53059171,111330.0,111320.0,0.36365471]
[1756893464033,0.5726059,111330.0,111320.0,0.08256]
[1756893465035,0.5526059,111330.0,111320.0,0.08256]
[1756893465226,0.9126059,111330.0,111320.0,0.08256]
[1756893465730,0.5726059,111330.0,111320.0,0.08256]
[1756893465930,1.4019659,111330.0,111320.0,0.08256]
[1756893466130,0.5726059,111330.0,111320.0,0.08256]
[1756893466331,1.4019259,111330.0,111320.0,0.08256]
[1756893467331,1.4017659,111330.0,111320.0,0.08256]
[1756893467532,0.09930776,111330.0,111320.0,0.08256]
[1756893467733,1.1214059,111330.0,111320.0,0.08256]
[1756893468231,0.5526059,111330.0,111320.0,0.08256]
[1756893468437,1.3819659,111330.0,111320.0,0.08256]
[1756893470540,0.09930776,111330.0,111320.0,0.15256]
[1756893470737,1.1206459,111330.0,111320.0,0.15256]
[1756893470934,1.3815259,111330.0,111320.0,0.15256]
[1756893473341,1.3812859,111330.0,111320.0,0.15256]
[1756893478345,1.3811259,111330.0,111320.0,0.15256]
[1756893479344,1.3811259,111330.0,111320.0,0.08256]
[1756893481446,1.4011259,111330.0,111320.0,0.08256]
[1756893481748,1.4011259,111330.0,111320.0,0.04779]
[1756893482446,1.4011259,111330.0,111320.0,0.08346]
[1756893483046,0.5526059,111330.0,111320.0,0.08346]
[1756893483242,1.3811259,111330.0,111320.0,0.08346]
[1756893484652,0.5526059,111330.0,111320.0,0.08346]
[1756893484850,1.3811259,111330.0,111320.0,0.08346]
[1756893485649,0.92782776,111330.0,111320.0,0.08346]
[1756893485853,1.3811259,111330.0,111320.0,0.08346]
[1756893486864,1.3811259,111330.0,111320.0,0.04779]
[1756893487046,1.3811259,111330.0,111320.0,0.08346]
[1756893489456,1.3811259,111330.0,111320.0,0.08381]
[1756893490760,0.92782776,111330.0,111320.0,0.08381]
[1756893491060,1.3811259,111330.0,111320.0,0.04779]
[1756893491763,0.92782776,111330.0,111320.0,0.04779]
[1756893491951,1.3811259,111330.0,111320.0,0.04779]
[1756893492264,0.92782776,111330.0,111320.0,0.04779]
[1756893492461,1.3811259,111330.0,111320.0,0.04779]
[1756893496462,1.4011259,111330.0,111320.0,0.001]
[1756893497664,1.4011259,111330.0,111320.0,0.02593]
[1756893499163,1.7411259,111330.0,111320.0,0.001]
[1756893499370,0.00084,111320.0,111310.0,0.02108625]
[1756893499666,0.79615233,111320.0,111310.0,0.02098625]
[1756893500562,0.79615233,111320.0,111310.0,0.02198625]
[1756893501063,0.79615233,111320.0,111310.0,0.02098625]
[1756893501458,1.02424751,111320.0,111310.0,0.02098625]
[1756893501663,1.02424751,111320.0,111310.0,0.06887625]
[1756893501872,0.72424751,111320.0,111310.0,0.06887625]
[1756893502257,1.02424751,111320.0,111310.0,0.06887625]
[1756893502456,0.70424751,111320.0,111310.0,0.06887625]
[1756893502656,0.72424751,111320.0,111310.0,0.06887625]
[1756893503167,0.02385419,111320.0,111310.0,0.10489625]
[1756893503366,0.02385419,111320.0,111310.0,0.69509291]
[1756893503566,0.75217419,111320.0,111310.0,0.35489625]
[1756893503768,0.75217419,111320.0,111310.0,0.69509291]
[1756893503960,1.09237085,111320.0,111310.0,0.69509291]
[1756893504766,0.75117419,111320.0,111310.0,0.69509291]
[1756893504959,1.09137085,111320.0,111310.0,0.69509291]
[1756893505467,1.09137085,111320.0,111310.0,0.35489625]
[1756893505767,1.09137085,111320.0,111310.0,0.69509291]
[1756893505963,1.19153085,111320.0,111310.0,0.69509291]
[1756893506566,0.85133419,111320.0,111310.0,0.69509291]
[1756893506768,0.85133419,111320.0,111310.0,0.69609291]
[1756893507368,0.85133419,111320.0,111310.0,0.69509291]
[1756893507667,0.02285419,111320.0,111310.0,0.69509291]
[1756893507868,0.85133419,111320.0,111310.0,0.69509291]
[1756893508668,0.02285419,111320.0,111310.0,0.69509291]
[1756893508868,0.85133419,111320.0,111310.0,0.69509291]
[1756893510865,0.02285419,111320.0,111310.0,0.69509291]
[1756893511065,0.02285419,111320.0,111310.0,1.38528957]
[1756893511066,0.85045419,111320.0,111310.0,1.38528957]
[1756893511271,0.07287357,111330.0,111320.0,0.03602]
[1756893511569,0.92362076,111330.0,111320.0,0.76430332]
[1756893512672,0.92342076,111330.0,111320.0,0.76430332]
[1756893512972,0.02208719,111330.0,111320.0,1.35430332]
[1756893513173,0.82844,111330.0,111320.0,1.35430332]
[1756893513866,0.34049666,111340.0,111320.0,1.35430332]
[1756893514066,0.36321569,111340.0,111330.0,0.42410666]
[1756893514274,0.36311569,111340.0,111330.0,0.42410666]
[1756893514467,1.19151569,111340.0,111330.0,0.42410666]
[1756893514667,0.36311569,111340.0,111330.0,0.42410666]
[1756893514876,0.85131903,111340.0,111330.0,0.42410666]
[1756893515079,1.19151569,111340.0,111330.0,0.42410666]
[1756893515963,1.19151569,111340.0,111330.0,0.4332812]
[1756893516571,0.85131903,111340.0,111330.0,0.4332812]
[1756893517676,0.85131903,111340.0,111330.0,0.6832812]
[1756893518271,0.02291903,111340.0,111330.0,0.6832812]
[1756893518877,0.85123903,111340.0,111330.0,0.6832812]
[1756893522182,0.02291903,111340.0,111330.0,0.6832812]
[1756893522479,0.85119903,111340.0,111330.0,0.6832812]
[1756893522670,0.85119903,111340.0,111330.0,0.67410666]
[1756893523568,0.02291903,111340.0,111330.0,0.67410666]
[1756893523776,0.85119903,111340.0,111330.0,0.67410666]
[1756893524274,0.85115903,111340.0,111330.0,0.67410666]
[1756893527776,0.85115903,111340.0,111330.0,1.00410666]
[1756893528681,0.85115903,111340.0,111330.0,1.01332004]